Workbook

Sheet Sheet1
A1: Anathema - Alliance | B1: 0,01262 | C1: 9345 G | D1: Sell | S1: =A1 -> Anathema - Alliance | T1: Rate | U1: =B1-G1*B1 -> 0.01262 | V1: Need | W1: =C1 -> 9345 G
A2: Arcanite Reaper - Horde | B2: 0,01214 | C2: 4000 G | D2: Sell | S2: =A2 -> Arcanite Reaper - Horde | T2: Rate | U2: =B2-G1*B2 -> 0.01214 | V2: Need | W2: =C2 -> 4000 G
A3: Arugal - Alliance | B3: 0,01723 | C3: 22589 G | D3: Sell | F3: 2020-10-10T13:35:47 | S3: Arugal - Alliance | T3: Rate | U3: =B3-G1*B3 -> 0.01723 | V3: Need | W3: 22589 G
A4: Arugal - Horde | B4: 0,01845 | C4: 1500 G | D4: Sell | F4: SELL RATE WOW CLASSIC.xlsm | S4: Arugal - Horde | T4: Rate | U4: =B4-G1*B4 -> 0.01845 | V4: Need | W4: 1500 G
A5: Arugal - Horde | B5: 0,01652 | C5: 24467 G | D5: Sell | S5: Arugal - Horde | T5: Rate | U5: =B5-G1*B5 -> 0.01652 | V5: Need | W5: 24467 G
A6: Ashkandi - Alliance | B6: 0,01176 | C6: 200000 G | D6: Sell | S6: Ashkandi - Alliance | T6: Rate | U6: =B6-G1*B6 -> 0.01176 | V6: Need | W6: 200000 G
A7: Ashkandi - Horde | B7: 0,01845 | C7: 500 G | D7: Sell | S7: Ashkandi - Horde | T7: Rate | U7: =B7-G1*B7 -> 0.01845 | V7: Need | W7: 500 G
A8: Ashkandi - Horde | B8: 0,01247 | C8: 9681 G | D8: Sell | S8: Ashkandi - Horde | T8: Rate | U8: =B8-G1*B8 -> 0.01247 | V8: Need | W8: 9681 G
A9: Atiesh - Alliance | B9: 0,01568 | C9: 200000 G | D9: Sell | S9: Atiesh - Alliance | T9: Rate | U9: =B9-G1*B9 -> 0.01568 | V9: Need | W9: 200000 G
A10: Atiesh - Horde | B10: 0,01568 | C10: 200000 G | D10: Sell | S10: Atiesh - Horde | T10: Rate | U10: =B10-G1*B10 -> 0.01568 | V10: Need | W10: 200000 G
A11: Azuresong - Alliance | B11: 0,01998 | C11: 400 G | D11: Sell | S11: Azuresong - Alliance | T11: Rate | U11: =B11-G1*B11 -> 0.01998 | V11: Need | W11: 400 G
A12: Azuresong - Alliance | B12: 0,01515 | C12: 2107 G | D12: Sell | S12: Azuresong - Alliance | T12: Rate | U12: =B12-G1*B12 -> 0.01515 | V12: Need | W12: 2107 G
A13: Azuresong - Horde | B13: 0,01998 | C13: 2050 G | D13: Sell | S13: Azuresong - Horde | T13: Rate | U13: =B13-G1*B13 -> 0.01998 | V13: Need | W13: 2050 G
A14: Azuresong - Horde | B14: 0,01829 | C14: 2500 G | D14: Sell | S14: Azuresong - Horde | T14: Rate | U14: =B14-G1*B14 -> 0.01829 | V14: Need | W14: 2500 G
A15: Benediction - Alliance | B15: 0,01567 | C15: 200000 G | D15: Sell | S15: Benediction - Alliance | T15: Rate | U15: =B15-G1*B15 -> 0.01567 | V15: Need | W15: 200000 G
A16: Benediction - Horde | B16: 0,01305 | C16: 200000 G | D16: Sell | S16: Benediction - Horde | T16: Rate | U16: =B16-G1*B16 -> 0.01305 | V16: Need | W16: 200000 G
A17: Benediction - Horde | B17: 0,01845 | C17: 525 G | D17: Sell | S17: Benediction - Horde | T17: Rate | U17: =B17-G1*B17 -> 0.01845 | V17: Need | W17: 525 G
A18: Bigglesworth - Alliance | B18: 0,01869 | C18: 21850 G | D18: Sell | S18: Bigglesworth - Alliance | T18: Rate | U18: =B18-G1*B18 -> 0.01869 | V18: Need | W18: 21850 G
A19: Bigglesworth - Horde | B19: 0,01737 | C19: 10782 G | D19: Sell | S19: Bigglesworth - Horde | T19: Rate | U19: =B19-G1*B19 -> 0.01737 | V19: Need | W19: 10782 G
A20: Bigglesworth - Horde | B20: 0,01845 | C20: 400 G | D20: Sell | S20: Bigglesworth - Horde | T20: Rate | U20: =B20-G1*B20 -> 0.01845 | V20: Need | W20: 400 G
A21: Blaumeux - Alliance | B21: 0,01189 | C21: 200000 G | D21: Sell | S21: Blaumeux - Alliance | T21: Rate | U21: =B21-G1*B21 -> 0.01189 | V21: Need | W21: 200000 G
A22: Blaumeux - Horde | B22: 0,01604 | C22: 62136 G | D22: Sell | S22: Blaumeux - Horde | T22: Rate | U22: =B22-G1*B22 -> 0.01604 | V22: Need | W22: 62136 G
A23: Blaumeux - Horde | B23: 0,01845 | C23: 300 G | D23: Sell | S23: Blaumeux - Horde | T23: Rate | U23: =B23-G1*B23 -> 0.01845 | V23: Need | W23: 300 G
A24: Bloodsail Buccaneers - Alliance | B24: 0,01998 | C24: 400 G | D24: Sell | S24: Bloodsail Buccaneers - Alliance | T24: Rate | U24: =B24-G1*B24 -> 0.01998 | V24: Need | W24: 400 G
A25: Bloodsail Buccaneers - Alliance | B25: 0,01406 | C25: 9400 G | D25: Sell | S25: Bloodsail Buccaneers - Alliance | T25: Rate | U25: =B25-G1*B25 -> 0.01406 | V25: Need | W25: 9400 G
A26: Bloodsail Buccaneers - Horde | B26: 0,02152 | C26: 800 G | D26: Sell | S26: Bloodsail Buccaneers - Horde | T26: Rate | U26: =B26-G1*B26 -> 0.02152 | V26: Need | W26: 800 G
A27: Bloodsail Buccaneers - Horde | B27: 0,01415 | C27: 3500 G | D27: Sell | S27: Bloodsail Buccaneers - Horde | T27: Rate | U27: =B27-G1*B27 -> 0.01415 | V27: Need | W27: 3500 G
A28: Deviate Delight - Alliance | B28: 0,01308 | C28: 200000 G | D28: Sell | S28: Deviate Delight - Alliance | T28: Rate | U28: =B28-G1*B28 -> 0.01308 | V28: Need | W28: 200000 G
A29: Deviate Delight - Horde | B29: 0,02152 | C29: 2200 G | D29: Sell | S29: Deviate Delight - Horde | T29: Rate | U29: =B29-G1*B29 -> 0.02152 | V29: Need | W29: 2200 G
A30: Deviate Delight - Horde | B30: 0,01881 | C30: 4300 G | D30: Sell | S30: Deviate Delight - Horde | T30: Rate | U30: =B30-G1*B30 -> 0.01881 | V30: Need | W30: 4300 G
A31: Earthfury - Alliance | B31: 0,01568 | C31: 200000 G | D31: Sell | S31: Earthfury - Alliance | T31: Rate | U31: =B31-G1*B31 -> 0.01568 | V31: Need | W31: 200000 G
A32: Earthfury - Horde | B32: 0,01523 | C32: 15150 G | D32: Sell | S32: Earthfury - Horde | T32: Rate | U32: =B32-G1*B32 -> 0.01523 | V32: Need | W32: 15150 G
A33: Earthfury - Horde | B33: 0,01845 | C33: 3600 G | D33: Sell | S33: Earthfury - Horde | T33: Rate | U33: =B33-G1*B33 -> 0.01845 | V33: Need | W33: 3600 G
A34: Faerlina - Alliance | B34: 0,01242 | C34: 200000 G | D34: Sell | S34: Faerlina - Alliance | T34: Rate | U34: =B34-G1*B34 -> 0.01242 | V34: Need | W34: 200000 G
A35: Faerlina - Horde | B35: 0,01845 | C35: 700 G | D35: Sell | S35: Faerlina - Horde | T35: Rate | U35: =B35-G1*B35 -> 0.01845 | V35: Need | W35: 700 G
A36: Fairbanks - Alliance | B36: 0,01998 | C36: 300 G | D36: Sell | S36: Fairbanks - Alliance | T36: Rate | U36: =B36-G1*B36 -> 0.01998 | V36: Need | W36: 300 G
A37: Fairbanks - Alliance | B37: 0,01682 | C37: 9020 G | D37: Sell | S37: Fairbanks - Alliance | T37: Rate | U37: =B37-G1*B37 -> 0.01682 | V37: Need | W37: 9020 G
A38: Fairbanks - Horde | B38: 0,01307 | C38: 200000 G | D38: Sell | S38: Fairbanks - Horde | T38: Rate | U38: =B38-G1*B38 -> 0.01307 | V38: Need | W38: 200000 G
A39: Felstriker - Alliance | B39: 0,01307 | C39: 1000 G | D39: Sell | S39: Felstriker - Alliance | T39: Rate | U39: =B39-G1*B39 -> 0.01307 | V39: Need | W39: 1000 G
A40: Grobbulus - Alliance | B40: 0,01371 | C40: 200000 G | D40: Sell | S40: Grobbulus - Alliance | T40: Rate | U40: =B40-G1*B40 -> 0.01371 | V40: Need | W40: 200000 G
A41: Grobbulus - Horde | B41: 0,01845 | C41: 500 G | D41: Sell | S41: Grobbulus - Horde | T41: Rate | U41: =B41-G1*B41 -> 0.01845 | V41: Need | W41: 500 G
A42: Grobbulus - Horde | B42: 0,01534 | C42: 7200 G | D42: Sell | S42: Grobbulus - Horde | T42: Rate | U42: =B42-G1*B42 -> 0.01534 | V42: Need | W42: 7200 G
A43: Heartseeker - Alliance | B43: 0,01403 | C43: 4400 G | D43: Sell | S43: Heartseeker - Alliance | T43: Rate | U43: =B43-G1*B43 -> 0.01403 | V43: Need | W43: 4400 G
A44: Herod - Alliance | B44: 0,01691 | C44: 1200 G | D44: Sell | S44: Herod - Alliance | T44: Rate | U44: =B44-G1*B44 -> 0.01691 | V44: Need | W44: 1200 G
A45: Herod - Alliance | B45: 0,01241 | C45: 200000 G | D45: Sell | S45: Herod - Alliance | T45: Rate | U45: =B45-G1*B45 -> 0.01241 | V45: Need | W45: 200000 G
A46: Herod - Horde | B46: 0,01177 | C46: 200000 G | D46: Sell | S46: Herod - Horde | T46: Rate | U46: =B46-G1*B46 -> 0.01177 | V46: Need | W46: 200000 G
A47: Incendius - Alliance | B47: 0,01269 | C47: 21401 G | D47: Sell | S47: Incendius - Alliance | T47: Rate | U47: =B47-G1*B47 -> 0.01269 | V47: Need | W47: 21401 G
A48: Kirtonos - Alliance | B48: 0,01778 | C48: 7600 G | D48: Sell | S48: Kirtonos - Alliance | T48: Rate | U48: =B48-G1*B48 -> 0.01778 | V48: Need | W48: 7600 G
A49: Kirtonos - Horde | B49: 0,01324 | C49: 18303 G | D49: Sell | S49: Kirtonos - Horde | T49: Rate | U49: =B49-G1*B49 -> 0.01324 | V49: Need | W49: 18303 G
A50: Kromcrush - Alliance | B50: 0,01546 | C50: 5900 G | D50: Sell | S50: Kromcrush - Alliance | T50: Rate | U50: =B50-G1*B50 -> 0.01546 | V50: Need | W50: 5900 G
A51: Kromcrush - Alliance | B51: 0,01845 | C51: 500 G | D51: Sell | S51: Kromcrush - Alliance | T51: Rate | U51: =B51-G1*B51 -> 0.01845 | V51: Need | W51: 500 G
A52: Kromcrush - Horde | B52: 0,01691 | C52: 800 G | D52: Sell | S52: Kromcrush - Horde | T52: Rate | U52: =B52-G1*B52 -> 0.01691 | V52: Need | W52: 800 G
A53: Kromcrush - Horde | B53: 0,01437 | C53: 200000 G | D53: Sell | S53: Kromcrush - Horde | T53: Rate | U53: =B53-G1*B53 -> 0.01437 | V53: Need | W53: 200000 G
A54: Kurinnaxx - Alliance | B54: 0,01231 | C54: 14600 G | D54: Sell | S54: Kurinnaxx - Alliance | T54: Rate | U54: =B54-G1*B54 -> 0.01231 | V54: Need | W54: 14600 G
A55: Kurinnaxx - Horde | B55: 0,01404 | C55: 6750 G | D55: Sell | S55: Kurinnaxx - Horde | T55: Rate | U55: =B55-G1*B55 -> 0.01404 | V55: Need | W55: 6750 G
A56: Loatheb - Alliance | B56: 0,01336 | C56: 9700 G | D56: Sell | S56: Loatheb - Alliance | T56: Rate | U56: =B56-G1*B56 -> 0.01336 | V56: Need | W56: 9700 G
A57: Mankrik - Alliance | B57: 0,01237 | C57: 10800 G | D57: Sell | S57: Mankrik - Alliance | T57: Rate | U57: =B57-G1*B57 -> 0.01237 | V57: Need | W57: 10800 G
A58: Mankrik - Horde | B58: 0,0124 | C58: 200000 G | D58: Sell | S58: Mankrik - Horde | T58: Rate | U58: =B58-G1*B58 -> 0.0124 | V58: Need | W58: 200000 G
A59: Myzrael - Alliance | B59: 0,01998 | C59: 500 G | D59: Sell | S59: Myzrael - Alliance | T59: Rate | U59: =B59-G1*B59 -> 0.01998 | V59: Need | W59: 500 G
A60: Myzrael - Alliance | B60: 0,0183 | C60: 3650 G | D60: Sell | S60: Myzrael - Alliance | T60: Rate | U60: =B60-G1*B60 -> 0.0183 | V60: Need | W60: 3650 G
A61: Myzrael - Horde | B61: 0,0143 | C61: 23200 G | D61: Sell | S61: Myzrael - Horde | T61: Rate | U61: =B61-G1*B61 -> 0.0143 | V61: Need | W61: 23200 G
A62: Netherwind - Alliance | B62: 0,01584 | C62: 8900 G | D62: Sell | S62: Netherwind - Alliance | T62: Rate | U62: =B62-G1*B62 -> 0.01584 | V62: Need | W62: 8900 G
A63: Netherwind - Horde | B63: 0,01781 | C63: 14400 G | D63: Sell | S63: Netherwind - Horde | T63: Rate | U63: =B63-G1*B63 -> 0.01781 | V63: Need | W63: 14400 G
A64: Old Blanchy - Alliance | B64: 0,01723 | C64: 7700 G | D64: Sell | S64: Old Blanchy - Alliance | T64: Rate | U64: =B64-G1*B64 -> 0.01723 | V64: Need | W64: 7700 G
A65: Old Blanchy - Horde | B65: 0,01722 | C65: 4800 G | D65: Sell | S65: Old Blanchy - Horde | T65: Rate | U65: =B65-G1*B65 -> 0.01722 | V65: Need | W65: 4800 G
A66: Old Blanchy - Horde | B66: 0,01998 | C66: 12300 G | D66: Sell | S66: =A66 -> Old Blanchy - Horde | T66: Rate | U66: =B66-G1*B66 -> 0.01998 | V66: Need | W66: =C66 -> 12300 G
A67: Pagle - Alliance | B67: 0,01691 | C67: 12200 G | D67: Sell | S67: Pagle - Alliance | T67: Rate | U67: =B67-G1*B67 -> 0.01691 | V67: Need | W67: 12200 G
A68: Pagle - Alliance | B68: 0,01998 | C68: 2300 G | D68: Sell | S68: Pagle - Alliance | T68: Rate | U68: =B68-G1*B68 -> 0.01998 | V68: Need | W68: 2300 G
A69: Pagle - Horde | B69: 0,01845 | C69: 1000 G | D69: Sell | S69: Pagle - Horde | T69: Rate | U69: =B69-G1*B69 -> 0.01845 | V69: Need | W69: 1000 G
A70: Pagle - Horde | B70: 0,01307 | C70: 200000 G | D70: Sell | S70: Pagle - Horde | T70: Rate | U70: =B70-G1*B70 -> 0.01307 | V70: Need | W70: 200000 G
A71: Rattlegore - Alliance | B71: 0,01359 | C71: 40250 G | D71: Sell | S71: Rattlegore - Alliance | T71: Rate | U71: =B71-G1*B71 -> 0.01359 | V71: Need | W71: 40250 G
A72: Rattlegore - Horde | B72: 0,01507 | C72: 15300 G | D72: Sell | S72: Rattlegore - Horde | T72: Rate | U72: =B72-G1*B72 -> 0.01507 | V72: Need | W72: 15300 G
A73: Remulos - Alliance | B73: 0,01437 | C73: 200000 G | D73: Sell | S73: Remulos - Alliance | T73: Rate | U73: =B73-G1*B73 -> 0.01437 | V73: Need | W73: 200000 G
A74: Remulos - Horde | B74: 0,02043 | C74: 7970 G | D74: Sell | S74: Remulos - Horde | T74: Rate | U74: =B74-G1*B74 -> 0.02043 | V74: Need | W74: 7970 G
A75: Skeram - Alliance | B75: 0,01307 | C75: 200000 G | D75: Sell | S75: Skeram - Alliance | T75: Rate | U75: =B75-G1*B75 -> 0.01307 | V75: Need | W75: 200000 G
A76: Skeram - Horde | B76: 0,01998 | C76: 2900 G | D76: Sell | S76: Skeram - Horde | T76: Rate | U76: =B76-G1*B76 -> 0.01998 | V76: Need | W76: 2900 G
A77: Skeram - Horde | B77: 0,01861 | C77: 12110 G | D77: Sell | S77: Skeram - Horde | T77: Rate | U77: =B77-G1*B77 -> 0.01861 | V77: Need | W77: 12110 G
A78: Smolderweb - Alliance | B78: 0,01307 | C78: 1500 G | D78: Sell | S78: Smolderweb - Alliance | T78: Rate | U78: =B78-G1*B78 -> 0.01307 | V78: Need | W78: 1500 G
A79: Smolderweb - Horde | B79: 0,01383 | C79: 9450 G | D79: Sell | S79: Smolderweb - Horde | T79: Rate | U79: =B79-G1*B79 -> 0.01383 | V79: Need | W79: 9450 G
A80: Stalagg - Alliance | B80: 0,0196 | C80: 2000 G | D80: Sell | S80: Stalagg - Alliance | T80: Rate | U80: =B80-G1*B80 -> 0.0196 | V80: Need | W80: 2000 G
A81: Sulfuras - Alliance | B81: 0,01537 | C81: 900 G | D81: Sell | S81: Sulfuras - Alliance | T81: Rate | U81: =B81-G1*B81 -> 0.01537 | V81: Need | W81: 900 G
A82: Sulfuras - Alliance | B82: 0,01545 | C82: 27035 G | D82: Sell | S82: Sulfuras - Alliance | T82: Rate | U82: =B82-G1*B82 -> 0.01545 | V82: Need | W82: 27035 G
A83: Sulfuras - Horde | B83: 0,01394 | C83: 7240 G | D83: Sell | S83: Sulfuras - Horde | T83: Rate | U83: =B83-G1*B83 -> 0.01394 | V83: Need | W83: 7240 G
A84: Sul'thraze - Alliance | B84: 0,01568 | C84: 1800 G | D84: Sell | S84: Sul'thraze - Alliance | T84: Rate | U84: =B84-G1*B84 -> 0.01568 | V84: Need | W84: 1800 G
A85: Thalnos - Alliance | B85: 0,01829 | C85: 1000 G | D85: Sell | S85: Thalnos - Alliance | T85: Rate | U85: =B85-G1*B85 -> 0.01829 | V85: Need | W85: 1000 G
A86: Thunderfury - Alliance | B86: 0,01845 | C86: 1575 G | D86: Sell | S86: Thunderfury - Alliance | T86: Rate | U86: =B86-G1*B86 -> 0.01845 | V86: Need | W86: 1575 G
A87: Thunderfury - Alliance | B87: 0,01515 | C87: 4285 G | D87: Sell | S87: Thunderfury - Alliance | T87: Rate | U87: =B87-G1*B87 -> 0.01515 | V87: Need | W87: 4285 G
A88: Thunderfury - Horde | B88: 0,01313 | C88: 200000 G | D88: Sell | S88: Thunderfury - Horde | T88: Rate | U88: =B88-G1*B88 -> 0.01313 | V88: Need | W88: 200000 G
A89: Westfall - Alliance | B89: 0,01698 | C89: 200000 G | D89: Sell | S89: Westfall - Alliance | T89: Rate | U89: =B89-G1*B89 -> 0.01698 | V89: Need | W89: 200000 G
A90: Westfall - Alliance | B90: 0,01998 | C90: 2000 G | D90: Sell | S90: Westfall - Alliance | T90: Rate | U90: =B90-G1*B90 -> 0.01998 | V90: Need | W90: 2000 G
A91: Westfall - Horde | B91: 0,01263 | C91: 3820 G | D91: Sell | S91: Westfall - Horde | T91: Rate | U91: =B91-G1*B91 -> 0.01263 | V91: Need | W91: 3820 G
A92: Whitemane - Alliance | B92: 0,01998 | C92: 357 G | D92: Sell | S92: Whitemane - Alliance | T92: Rate | U92: =B92-G1*B92 -> 0.01998 | V92: Need | W92: 357 G
A93: Whitemane - Alliance | B93: 0,01676 | C93: 9760 G | D93: Sell | S93: Whitemane - Alliance | T93: Rate | U93: =B93-G1*B93 -> 0.01676 | V93: Need | W93: 9760 G
A94: Whitemane - Horde | B94: 0,01438 | C94: 200000 G | D94: Sell | S94: Whitemane - Horde | T94: Rate | U94: =B94-G1*B94 -> 0.01438 | V94: Need | W94: 200000 G
A95: Windseeker - Alliance | B95: 0,01913 | C95: 12650 G | D95: Sell | S95: Windseeker - Alliance | T95: Rate | U95: =B95-G1*B95 -> 0.01913 | V95: Need | W95: 12650 G
A96: Windseeker - Alliance | B96: 0,01845 | C96: 1200 G | D96: Sell | S96: Windseeker - Alliance | T96: Rate | U96: =B96-G1*B96 -> 0.01845 | V96: Need | W96: 1200 G
A97: Windseeker - Horde | B97: 0,01998 | C97: 1200 G | D97: Sell | S97: Windseeker - Horde | T97: Rate | U97: =B97-G1*B97 -> 0.01998 | V97: Need | W97: 1200 G
A98: Windseeker - Horde | B98: 0,01176 | C98: 200000 G | D98: Sell | S98: Windseeker - Horde | T98: Rate | U98: =B98-G1*B98 -> 0.01176 | V98: Need | W98: 200000 G
A99: Yojamba - Alliance | B99: 0,01998 | C99: 840 G | D99: Sell | S99: Yojamba - Alliance | T99: Rate | U99: =B99-G1*B99 -> 0.01998 | V99: Need | W99: 840 G
A100: Yojamba - Alliance | B100: 0,01811 | C100: 3190 G | D100: Sell | S100: Yojamba - Alliance | T100: Rate | U100: =B100-G1*B100 -> 0.01811 | V100: Need | W100: 3190 G
A101: Yojamba - Horde | B101: 0,01691 | C101: 1800 G | D101: Sell | S101: Yojamba - Horde | T101: Rate | U101: =B101-G1*B101 -> 0.01691 | V101: Need | W101: 1800 G
A102: Yojamba - Horde | B102: 0,01671 | C102: 26680 G | D102: Sell | S102: Yojamba - Horde | T102: Rate | U102: =B102-G1*B102 -> 0.01671 | V102: Need | W102: 26680 G
S103: 0 | T103: Rate | U103: =B103-G1*B103 -> 0 | V103: Need | W103: 0
S104: 0 | T104: Rate | U104: =B104-G1*B104 -> 0 | V104: Need | W104: 0
S105: 0 | T105: Rate | U105: =B105-G1*B105 -> 0 | V105: Need | W105: 0
S106: 0 | T106: Rate | U106: =B106-G1*B106 -> 0 | V106: Need | W106: 0
S107: 0 | T107: Rate | U107: =B107-G1*B107 -> 0 | V107: Need | W107: 0
S108: 0 | T108: Rate | U108: =B108-G1*B108 -> 0 | V108: Need | W108: 0
S109: 0 | T109: Rate | U109: =B109-G1*B109 -> 0 | V109: Need | W109: 0
S110: 0 | T110: Rate | U110: =B110-G1*B110 -> 0 | V110: Need | W110: 0
S111: 0 | T111: Rate | U111: =B111-G1*B111 -> 0 | V111: Need | W111: 0
S112: 0 | T112: Rate | U112: =B112-G1*B112 -> 0 | V112: Need | W112: 0
S113: 0 | T113: Rate | U113: =B113-G1*B113 -> 0 | V113: Need | W113: 0
S114: 0 | T114: Rate | U114: =B114-G1*B114 -> 0 | V114: Need | W114: 0
S115: 0 | T115: Rate | U115: =B115-G1*B115 -> 0 | V115: Need | W115: 0
S116: 0 | T116: Rate | U116: =B116-G1*B116 -> 0 | V116: Need | W116: 0
S117: 0 | T117: Rate | U117: =B117-G1*B117 -> 0 | V117: Need | W117: 0
S118: 0 | T118: Rate | U118: =B118-G1*B118 -> 0 | V118: Need | W118: 0
S119: 0 | T119: Rate | U119: =B119-G1*B119 -> 0 | V119: Need | W119: 0
S120: 0 | T120: Rate | U120: =B120-G1*B120 -> 0 | V120: Need | W120: 0
S121: 0 | T121: Rate | U121: =B121-G1*B121 -> 0 | V121: Need | W121: 0
S122: 0 | T122: Rate | U122: =B122-G1*B122 -> 0 | V122: Need | W122: 0
S123: 0 | T123: Rate | U123: =B123-G1*B123 -> 0 | V123: Need | W123: 0
S124: 0 | T124: Rate | U124: =B124-G1*B124 -> 0 | V124: Need | W124: 0

Sheet Sheet2
D1: SAD | E1: Anathema - Horde | F1: 0,02907 | G1: 400 G | I1: Anathema - Horde | J1: 0,02907 | K1: 400 G | M1: Anathema - Horde | N1: 0,02907 | O1: 400 G | P1: Anathema - Horde | Q1: 0,02907 | R1: 400 G | S1: Anathema - Horde | T1: 0,02907 | U1: 400 G
D2: SAD
D3: SAD
D4: SAD
D5: SAD
D6: SAD
D7: SAD
D8: SAD
D9: SAD
D10: SAD
D11: SAD
D12: SAD
D13: SAD
D14: SAD
D15: SAD
D16: SAD
D17: SAD
D18: SAD
D19: SAD
D20: SAD
D21: SAD
D22: SAD
D23: SAD
D24: SAD
D25: SAD
D26: SAD
D27: SAD
D28: SAD
D29: SAD
D30: SAD
D31: SAD
D32: SAD
D33: SAD
D34: SAD
D35: SAD
D36: SAD
D37: SAD
D38: SAD
D39: SAD
D40: SAD
D41: SAD
D42: SAD
D43: SAD

Sheet Calculator
B1: GOLDMASTERGM.COM
B7: MMOBUYER
B12: RATE DOLLAR KE RUPIAH : | C12: 14000 | D12: =C16*C12 -> 233.38 | E12: PENDAPATAN MENURUT % : | F12: 0.13
B16: RATE DI MMOBUYER : | C16: 0.01667 | E16: RATE KE FARMER | F16: =D12-F12*D12 -> 203.0406
C17: .
B20: G2G
B25: RATE DOLLAR KE RUPIAH : | C25: 14000 | D25: =C29*C25 -> 268.66 | E25: PENGURANGAN KE FARMER % : | F25: 0.24 | H25: =F25-F26 -> 0.12
E26: FEE : | F26: 0.12
F28: =F33-F26*F33 -> 354631.2
B29: RATE DI G2G : | C29: 0.01919 | E29: RATE KE FARMER USD | F29: =C29-F25*C29 -> 0.0145844
C30: .
E31: RATE KE FARMER IDR | F31: =F29*C25 -> 204.1816
B33: JUMLAH GOLD YANG DI JUAL : | C33: 1500 | E33: TOTAL | F33: =D25*C33 -> 402990
E35: BAYAR KE FARMER | F35: =F31*C33 -> 306272.4
E37: INCOME | F37: =F28-F35 -> 48358.8
